Cogmind - Beta 15 @@@ ROGUE MODE // 2025.06.19 @ 02:09:54 Player: CL-1C0 Result: Self-destructed Performance ------------- Evolutions (9) 4500 Regions Visited (12) 2400 Robots Destroyed (5) 25 Value Destroyed (48) 48 Prototype IDs (0) 0 Alien Tech Used (0) 0 Bonus (1200) 1200 TOTAL SCORE: 8173 Bonus ------- Pacifist 200 Entered DSFs 1000 Cogmind --------- Core Integrity 992/1600 Matter 300/300 Energy 100/100 System Corruption 2% Temperature Cool (0) Movement Core (50) Location -1/Access Parts ------- > --- POWER (2) -------- (None) > --- PROPULSION (8) --- (None) > --- UTILITY (13) ----- Advanced Terrain Scan Processor Advanced Terrain Scan Processor Advanced Terrain Scan Processor > --- WEAPON (2) ------- (None) > --- INVENTORY (5) ---- Light Quantum Reactor Improved Cooling System Advanced Sensor Array Graphene Brace Peak State ------------ > --- POWER ------------ Light Antimatter Reactor Light Quantum Reactor > --- PROPULSION ------- Flight Unit Flight Unit Flight Unit Flight Unit Flight Unit Field Propulsion Drive Field Propulsion Drive Field Propulsion Drive > --- UTILITY ---------- Improved Cooling System Enhanced Optical Array Advanced Sensor Array Advanced Signal Interpreter Terrain Scanner Advanced Terrain Scan Processor Advanced Terrain Scan Processor Advanced Terrain Scan Processor Advanced Terrain Scan Processor Advanced Terrain Scan Processor Improved Transmission Jammer > --- WEAPON ----------- Plasma Cutter Axe > --- INVENTORY -------- Light Nuclear Core Light Nuclear Core Experimental Energy Well Structural Scanner Graphene Brace [Rating: 92] Favorites ----------- Power Light Nuclear Core Engine Light Ion Engine Power Core Light Nuclear Core Reactor Light Antimatter Reactor Propulsion Flight Unit Treads Light Treads Flight Unit Flight Unit Utility Advanced Terrain Scan Processor Device Terrain Scanner Processor Advanced Terrain Scan Processor Hackware Hacking Suite Weapon Axe Energy Gun EM Shotgun Special Weapon Plasma Cutter Slashing Weapon Axe Build | -11 -10 -9 -8 -7 -6 -6 -5 -4 -3 -3 -2 -1 ------- Run | Yrd Mat Mat Mat Fac Fac DSF Fac Fac Res DSF Res Acc Slots Evolved 18 | . . 2 2 2 2 . 2 2 2 . 2 2 Power 1 | . . . . 1 . . . . . . . . Propulsion 6 | . . 2 2 . . . . . . . 2 . Utility 11 | . . . . 1 2 . 2 2 2 . . 2 Weapon . | . . . . . . . . . . . . . Parts Attached 38 | 2 1 7 3 6 4 1 2 2 3 4 2 1 Power 5 | . . 1 1 1 . . . . . 1 1 . Engine 1 | . . 1 . . . . . . . . . . Core 2 | . . . 1 1 . . . . . . . . Reactor 2 | . . . . . . . . . . 1 1 . Propulsion 12 | 2 1 3 2 . . . . . . 3 1 . Treads 2 | 2 . . . . . . . . . . . . Leg . | . . . . . . . . . . . . . Wheel . | . . . . . . . . . . . . . Hover . | . . . . . . . . . . . . . Flight 10 | . 1 3 2 . . . . . . 3 1 . Utility 18 | . . 2 . 3 4 1 2 2 3 . . 1 Device 6 | . . 1 . . 1 1 1 . 2 . . . Storage . | . . . . . . . . . . . . . Processor 8 | . . 1 . 1 2 . 1 2 1 . . . Hackware 4 | . . . . 2 1 . . . . . . 1 Protection . | . . . . . . . . . . . . . Artifact . | . . . . . . . . . . . . . Weapon 3 | . . 1 . 2 . . . . . . . . Energy Gun 1 | . . 1 . . . . . . . . . . Energy Cannon . | . . . . . . . . . . . . . Ballistic Gun . | . . . . . . . . . . . . . Ballistic Cannon . | . . . . . . . . . . . . . Launcher . | . . . . . . . . . . . . . Special Weapon 1 | . . . . 1 . . . . . . . . Impact Weapon . | . . . . . . . . . . . . . Slashing Weapon 1 | . . . . 1 . . . . . . . . Piercing Weapon . | . . . . . . . . . . . . . Special Melee Weapon . | . . . . . . . . . . . . . Unidentified Prototypes . | . . . . . . . . . . . . . Parts Lost 20 | . . . . . . . 1 . . . 14 5 Power . | . . . . . . . . . . . . . Propulsion 10 | . . . . . . . 1 . . . 9 . Utility 8 | . . . . . . . . . . . 3 5 Weapon 2 | . . . . . . . . . . . 2 . Highest Loss Streak 14 | . . . . . . . 1 . . . 14 5 To Critical Strikes . | . . . . . . . . . . . . . Average Backups 3 | 4 3 4 4 2 3 4 3 1 2 4 4 4 Power . | 1 . . 1 . . . . . 1 1 1 1 Propulsion . | 2 3 2 . . . . . . . 1 . . Utility 2 | . . . 1 2 3 4 3 1 1 2 2 3 Weapon . | 1 . . . . . . . . . . . . Tool/Special . | . . . . . . . . . . . . . Unused Backups 6 | . . 1 3 1 . . . . . . 1 . Power 1 | . . . 1 . . . . . . . . . Propulsion . | . . . . . . . . . . . . . Utility 4 | . . 1 1 1 . . . . . . 1 . Weapon . | . . . . . . . . . . . . . Tool/Special 1 | . . . 1 . . . . . . . . . Average Slot Usage (%) 80 | . 28 61 88 98 97 100 95 93 94 99 84 24 Core 6 | . . . 7 15 13 13 11 10 9 5 1 . Treads 1 | . 20 . . . . . . . . . . . Flight 29 | . 8 40 52 46 40 40 31 26 23 27 26 . Device 10 | . . 3 9 7 6 6 15 15 19 19 14 . Processor 19 | . . 7 9 3 13 20 22 30 31 33 29 22 Hackware 2 | . . . . 10 10 6 1 . . . . 1 Energy Gun 1 | . . 6 9 4 . . . . . . . . Special Weapon 2 | . . . . 2 6 6 5 5 4 4 2 . Slashing Weapon 3 | . . . . 6 6 6 5 5 4 4 3 . Peak Build Rating 92 | 2 2 11 16 27 34 39 45 53 65 83 92 31 Average Rating 40 | 1 2 8 15 24 33 36 43 52 62 79 76 26 On Entrance 31 | 6 2 2 11 16 26 34 39 44 53 63 83 27 Naked Turns . | . . . . . . . . . . . . . Heaviest Build 36 | . . 7 9 17 15 15 18 18 20 26 36 1 Greatest Support 41 | 3 3 16 24 24 24 24 24 20 20 33 41 3 Greatest Overweight (x) 1 | . . . . . . . . . . . 1 . Average Overweight (x) . | . . . . . . . . . . . . . Largest Inventory Capacity 5 | 5 5 5 5 5 5 5 5 5 5 5 5 5 Average Capacity 5 | 5 5 5 5 5 5 5 5 5 5 5 5 5 Most Carried 5 | 4 5 5 5 5 4 5 5 3 3 5 5 5 Average Carried 3 | 2 3 3 4 2 3 4 3 1 2 4 4 4 Final Capacity 5 | 5 5 5 5 5 5 5 5 5 5 5 5 5 Final Carried 5 | . 5 5 5 5 4 5 3 3 3 5 5 4 Class Distribution -------------------- 33% | Ninja 32% | Sprinter 24% | Mutant 10% | Hacker-Sprinter Dominant Class ---------------- Mutant | -10/Materials Mutant | -9/Materials Sprinter | -8/Materials Hacker-Sprinter | -7/Factory Hacker-Sprinter | -6/Factory Sprinter | -6/DSF Sprinter | -5/Factory Ninja | -4/Factory Ninja | -3/Research Ninja | -3/DSF Ninja | -2/Research Mutant | -1/Access Resources | -11 -10 -9 -8 -7 -6 -6 -5 -4 -3 -3 -2 -1 ----------- Run | Yrd Mat Mat Mat Fac Fac DSF Fac Fac Res DSF Res Acc Matter Collected 605 | 154 . 16 . 93 23 . . . . 319 . . Remotely . | . . . . . . . . . . . . . Salvage Created 132 | . . 16 . 93 23 . . . . . . . Parts 12 | . . 2 . 7 3 . . . . . . . Haulers Intercepted 1 | . . . . 1 . . . . . . . . Recyclers Shooed . | . . . . . . . . . . . . . Parts Field Recycled . | . . . . . . . . . . . . . Retrieved Matter . | . . . . . . . . . . . . . Parts Self-Destructed . | . . . . . . . . . . . . . Prevented . | . . . . . . . . . . . . . Kills | -11 -10 -9 -8 -7 -6 -6 -5 -4 -3 -3 -2 -1 ------- Run | Yrd Mat Mat Mat Fac Fac DSF Fac Fac Res DSF Res Acc Combat Hostiles Destroyed . | . . . . . . . . . . . . . Classes Destroyed 3 | . . 1 . 2 . . . . . . . . Builder 2 | . . . . 1 1 . . . . . . . Hauler 1 | . . . . 1 . . . . . . . . Operator 2 | . . 1 . 1 . . . . . . . . Best Kill Streak 2 | . . . . 2 1 . . . . . . . Combat Bots Only . | . . . . . . . . . . . . . Max Kills in Single Turn 1 | . . 1 . 1 1 . . . . . . . Gunslinging . | . . . . . . . . . . . . . Exploded . | . . . . . . . . . . . . . Melee . | . . . . . . . . . . . . . Uniques/NPCs Destroyed . | . . . . . . . . . . . . . Combat | -11 -10 -9 -8 -7 -6 -6 -5 -4 -3 -3 -2 -1 -------- Run | Yrd Mat Mat Mat Fac Fac DSF Fac Fac Res DSF Res Acc Hostile Shots Fired 208 | . 10 13 18 . . 5 6 . . 11 91 54 Missed 102 | . 5 8 10 . . 3 4 . . 7 44 21 Hits 106 | . 5 5 8 . . 2 2 . . 4 47 33 Projectile 106 | . 5 5 8 . . 2 2 . . 4 47 33 Critical Strikes 1 | . . . . . . . . . . . . 1 Damage Taken 2153 | . 72 47 56 . . 45 40 . . 98 1048 747 Core 1238 | . 26 . 7 . . 45 . . . . 552 608 Absorbed by Shields 12 | . . . . . . . . . . 12 . . Core Remaining (%) 94 | 100 89 100 98 100 . 94 100 100 . 100 61 . Volleys Fired 2 | . . 2 . . . . . . . . . . Largest 1 | . . 1 . . . . . . . . . . Hottest 45 | . . 45 . . . . . . . . . . Shots Fired 2 | . . 2 . . . . . . . . . . Gun 2 | . . 2 . . . . . . . . . . Cannon . | . . . . . . . . . . . . . Launcher . | . . . . . . . . . . . . . Special . | . . . . . . . . . . . . . Kinetic . | . . . . . . . . . . . . . Thermal . | . . . . . . . . . . . . . Explosive . | . . . . . . . . . . . . . Electromagnetic 2 | . . 2 . . . . . . . . . . Robot Hit Streak 2 | . . 2 . . . . . . . . . . Robot Miss Streak 1 | . . 1 . . . . . . . . . . Penetration Max . | . . . . . . . . . . . . . Secondary Targets . | . . . . . . . . . . . . . Shots Hit Robots 9 | . . 2 . 4 1 . . 2 . . . . Core Hits 6 | . . 2 . 2 1 . . . . . . 1 Critical Kills . | . . . . . . . . . . . . . Critical Parts Destroyed . | . . . . . . . . . . . . . Critical Strikes 1 | . . . . . . . . 1 . . . . Sever 1 | . . . . . . . . 1 . . . . Melee Attacks 63 | . . . . 11 2 2 13 13 3 2 17 . Impact . | . . . . . . . . . . . . . Slashing 63 | . . . . 11 2 2 13 13 3 2 17 . Piercing . | . . . . . . . . . . . . . Sneak Attacks 4 | . . . . 2 1 . . 1 . . . . Combat Hostiles . | . . . . . . . . . . . . . Follow-up Attacks . | . . . . . . . . . . . . . Damage Inflicted 497 | . . 23 . 251 91 . . 120 . . . 12 Guns 23 | . . 23 . . . . . . . . . . Cannons . | . . . . . . . . . . . . . Explosions . | . . . . . . . . . . . . . Melee 462 | . . . . 251 91 . . 120 . . . . Ramming 12 | . . . . . . . . . . . . 12 Kinetic . | . . . . . . . . . . . . . Thermal . | . . . . . . . . . . . . . Explosive . | . . . . . . . . . . . . . Electromagnetic 23 | . . 23 . . . . . . . . . . Impact . | . . . . . . . . . . . . . Slashing 462 | . . . . 251 91 . . 120 . . . . Piercing . | . . . . . . . . . . . . . Highest Corruption 6 | . . . . . . . . . . . 6 2 Average Corruption 3 | . . . . . . . . . . . 4 2 Corruption Purged . | . . . . . . . . . . . . . Corruption Blocked . | . . . . . . . . . . . . . Effects 1 | . . . . . . . . . . . 1 . Data Loss (minor) 1 | . . . . . . . . . . . 1 . Overload Shots . | . . . . . . . . . . . . . Overflow Damage 27 | . . . . 17 . . . 10 . . . . Projectiles . | . . . . . . . . . . . . . Explosions . | . . . . . . . . . . . . . Melee 27 | . . . . 17 . . . 10 . . . . Knockbacks . | . . . . . . . . . . . . . Impact . | . . . . . . . . . . . . . Kinetic . | . . . . . . . . . . . . . Secondary . | . . . . . . . . . . . . . Self-Inflicted Damage 5 | . . . . . . . . . . . . 5 Shots . | . . . . . . . . . . . . . Rammed 2 | . . . . . . . . . . . . 2 Targets Rammed 2 | . . . . . . . . . . . . 2 Kicked . | . . . . . . . . . . . . . Crushed . | . . . . . . . . . . . . . Highest Temperature 84 | . . 3 22 84 . . . . . . . . Average Temperature 22 | . . 3 8 28 . . . . . . . . Received Heat Transfer 114 | . 39 12 . . . . 18 . . 18 27 . Siege Activations . | . . . . . . . . . . . . . Martial Activations . | . . . . . . . . . . . . . Shielding Activations . | . . . . . . . . . . . . . Robots Disrupted . | . . . . . . . . . . . . . Combat Hostiles . | . . . . . . . . . . . . . Robots Corrupted . | . . . . . . . . . . . . . Combat Hostiles . | . . . . . . . . . . . . . Parts Fried . | . . . . . . . . . . . . . Impact Corruptions . | . . . . . . . . . . . . . Robots Melted . | . . . . . . . . . . . . . Combat Hostiles . | . . . . . . . . . . . . . Parts Melted . | . . . . . . . . . . . . . Heat Transferred . | . . . . . . . . . . . . . Parts Sabotaged . | . . . . . . . . . . . . . Parts Stolen . | . . . . . . . . . . . . . Parts Stripped . | . . . . . . . . . . . . . Power Chain Reactions . | . . . . . . . . . . . . . Alert | -11 -10 -9 -8 -7 -6 -6 -5 -4 -3 -3 -2 -1 ------- Run | Yrd Mat Mat Mat Fac Fac DSF Fac Fac Res DSF Res Acc Maximum Alert Level . | . . . . . . . . . . . . . Low Security (%) 100 | 100 100 100 100 100 100 100 100 100 100 100 100 100 Level 1 . | . . . . . . . . . . . . . Level 2 . | . . . . . . . . . . . . . Level 3 . | . . . . . . . . . . . . . Level 4 . | . . . . . . . . . . . . . Level 5 . | . . . . . . . . . . . . . High Security . | . . . . . . . . . . . . . Max Security . | . . . . . . . . . . . . . Peak Influence 98 | . 15 11 35 77 34 18 98 63 43 43 42 45 Initial 37 | . . 5 . 11 28 16 9 37 28 24 24 . Average 26 | . 2 1 10 26 28 17 59 45 33 26 21 9 Influence Increases 557 | . 15 6 45 105 6 2 146 68 24 19 76 45 Destroy 0b10 Robot/NC 20 | . . . . 15 5 . . . . . . . Destroy Leader 2 | . . . . 2 . . . . . . . . Successful Hack 74 | . . 6 . 8 . . 21 18 5 . 16 . Disable Machine 30 | . . . . 15 . . . . 15 . . . Destroy Structure 86 | . . . . 5 1 2 20 20 4 4 30 . Partial Spotted 105 | . 15 . . 30 . . 30 15 . . 15 . Lose Combat Pursuer 240 | . . . 45 30 . . 75 15 . 15 15 45 Influence Decreases 557 | . . 21 20 72 40 8 88 89 47 8 119 45 Entered New Map 164 | . . 10 . 14 30 8 9 39 27 8 19 . Time Decay 308 | . . 11 10 58 10 . 69 50 20 . 60 20 Lost Part 75 | . . . . . . . 10 . . . 40 25 Lost Ally 10 | . . . 10 . . . . . . . . . Squads Dispatched 13 | . 2 3 1 . . . 1 2 1 . 2 1 Investigation 8 | . 1 2 1 . . . 1 1 1 . . 1 Extermination 2 | . . . . . . . . 1 . . 1 . Reinforcement 3 | . 1 1 . . . . . . . . 1 . Assault . | . . . . . . . . . . . . . Garrison . | . . . . . . . . . . . . . Intercept . | . . . . . . . . . . . . . Searches Triggered . | . . . . . . . . . . . . . Construction Impeded . | . . . . . . . . . . . . . Haulers Reinforced . | . . . . . . . . . . . . . Active Scanning Responses . | . . . . . . . . . . . . . Cargo Convoy Interrupts . | . . . . . . . . . . . . . Stealth | -11 -10 -9 -8 -7 -6 -6 -5 -4 -3 -3 -2 -1 --------- Run | Yrd Mat Mat Mat Fac Fac DSF Fac Fac Res DSF Res Acc Distress Signals 1 | . . . 1 . . . . . . . . . Communications Jammed 3 | . . . . . . . 2 . . . 1 . Distress Signals 3 | . . . . . . . 2 . . . 1 . Times Spotted 92 | . 4 14 12 4 . 1 10 3 . 15 21 8 Peak Tracking Total 19 | . 3 13 10 2 . 1 6 2 . 11 19 8 Tactical Retreats 9 | . . . 2 1 . . 2 1 . 1 1 1 Traps | -11 -10 -9 -8 -7 -6 -6 -5 -4 -3 -3 -2 -1 ------- Run | Yrd Mat Mat Mat Fac Fac DSF Fac Fac Res DSF Res Acc Traps Triggered 6 | . 1 . 1 . . . 1 1 . 2 . . Indirectly . | . . . . . . . . . . . . . Trap Hack Attempts . | . . . . . . . . . . . . . Triggered . | . . . . . . . . . . . . . Disarmed . | . . . . . . . . . . . . . Reprogrammed . | . . . . . . . . . . . . . Reused . | . . . . . . . . . . . . . Traps Extracted . | . . . . . . . . . . . . . Installed . | . . . . . . . . . . . . . Triggered . | . . . . . . . . . . . . . Machines | -11 -10 -9 -8 -7 -6 -6 -5 -4 -3 -3 -2 -1 ---------- Run | Yrd Mat Mat Mat Fac Fac DSF Fac Fac Res DSF Res Acc Machines Disabled 2 | . . . . 1 . . . . 1 . . . Max in Single Turn 1 | . . . . 1 . . . . 1 . . . Machines Repaired . | . . . . . . . . . . . . . Machines Dismantled . | . . . . . . . . . . . . . Machines Sabotaged . | . . . . . . . . . . . . . Overloaded Fab Kills . | . . . . . . . . . . . . . Hacking | -11 -10 -9 -8 -7 -6 -6 -5 -4 -3 -3 -2 -1 --------- Run | Yrd Mat Mat Mat Fac Fac DSF Fac Fac Res DSF Res Acc Machines Accessed 22 | . . 4 2 4 2 . 2 3 2 . 2 1 Terminals 20 | . . 4 2 4 1 . 1 3 2 . 2 1 Fabricators 1 | . . . . . . . 1 . . . . . Repair Stations . | . . . . . . . . . . . . . Recycling Units 1 | . . . . . 1 . . . . . . . Scanalyzers . | . . . . . . . . . . . . . Garrison Access . | . . . . . . . . . . . . . Total Hacks 55 | . . 9 6 10 4 . 5 7 5 . 5 4 Successful 17 | . . 2 4 3 2 . 2 1 1 . 2 . Failed 38 | . . 7 2 7 2 . 3 6 4 . 3 4 Catastrophic 9 | . . 3 . . . . 2 2 1 . . 1 Database Lockouts . | . . . . . . . . . . . . . Manual 22 | . . 5 4 6 . . 3 . . . . 4 Terminals 52 | . . 9 6 10 2 . 4 7 5 . 5 4 Fabricators 1 | . . . . . . . 1 . . . . . Repair Stations . | . . . . . . . . . . . . . Recycling Units 2 | . . . . . 2 . . . . . . . Scanalyzers . | . . . . . . . . . . . . . Garrison Access . | . . . . . . . . . . . . . Terminal Hacks 13 | . . 1 3 3 1 . 1 1 1 . 2 . Open DSF 2 | . . . . . 1 . . . 1 . . . Level Access Points 3 | . . . 1 1 . . . 1 . . . . Branch Access Points 1 | . . . . . . . 1 . . . . . Emergency Access Points 1 | . . . . . . . . . . . 1 . Machine Index 1 | . . . . 1 . . . . . . . . Registered Components 2 | . . . . 1 . . . . . . 1 . Zone Layout 3 | . . 1 2 . . . . . . . . . Fabricator Hacks . | . . . . . . . . . . . . . Repair Station Hacks . | . . . . . . . . . . . . . Recycling Unit Hacks 1 | . . . . . 1 . . . . . . . Retrieve Components 1 | . . . . . 1 . . . . . . . Scanalyzer . | . . . . . . . . . . . . . Garrison Access Hacks . | . . . . . . . . . . . . . Unauthorized Hacks 3 | . . 1 1 . . . 1 . . . . . Terminals 2 | . . 1 1 . . . . . . . . . Assimilate 2 | . . 1 1 . . . . . . . . . Fabricators 1 | . . . . . . . 1 . . . . . Haulers 1 | . . . . . . . 1 . . . . . Repair Stations . | . . . . . . . . . . . . . Recycling Units . | . . . . . . . . . . . . . Scanalyzers . | . . . . . . . . . . . . . Garrison Access . | . . . . . . . . . . . . . Data Cores Recovered . | . . . . . . . . . . . . . Used . | . . . . . . . . . . . . . Hacking Detections 22 | . . 4 2 4 2 . 2 3 2 . 2 1 Full Trace Events 6 | . . 2 . . . . 1 1 1 . . 1 Feedback Events . | . . . . . . . . . . . . . Feedback Blocked . | . . . . . . . . . . . . . Robot Schematics Acquired . | . . . . . . . . . . . . . Robots Built . | . . . . . . . . . . . . . Authchips . | . . . . . . . . . . . . . Time . | . . . . . . . . . . . . . Total Robot Build Rating . | . . . . . . . . . . . . . Part Schematics Acquired . | . . . . . . . . . . . . . Parts Built . | . . . . . . . . . . . . . Authchips . | . . . . . . . . . . . . . Time . | . . . . . . . . . . . . . Total Part Build Rating . | . . . . . . . . . . . . . Parts Repaired . | . . . . . . . . . . . . . Time . | . . . . . . . . . . . . . Parts Recycled . | . . . . . . . . . . . . . Recycled Matter . | . . . . . . . . . . . . . Retrieved Matter . | . . . . . . . . . . . . . Retrieved Components . | . . . . . . . . . . . . . Parts Scanalyzed . | . . . . . . . . . . . . . Part Schematics Acquired . | . . . . . . . . . . . . . Parts Damaged . | . . . . . . . . . . . . . Bothacking | -11 -10 -9 -8 -7 -6 -6 -5 -4 -3 -3 -2 -1 ------------ Run | Yrd Mat Mat Mat Fac Fac DSF Fac Fac Res DSF Res Acc Used RIF Installer . | . . . . . . . . . . . . . Robots Hacked . | . . . . . . . . . . . . . Non-combat . | . . . . . . . . . . . . . Combat . | . . . . . . . . . . . . . Robot Hacks Applied . | . . . . . . . . . . . . . Relay Couplers Released . | . . . . . . . . . . . . . Fabnet Peak Effective % . | . . . . . . . . . . . . . Robots Rewired . | . . . . . . . . . . . . . Allies Hacked . | . . . . . . . . . . . . . Hacks Repelled . | . . . . . . . . . . . . . Allies | -11 -10 -9 -8 -7 -6 -6 -5 -4 -3 -3 -2 -1 -------- Run | Yrd Mat Mat Mat Fac Fac DSF Fac Fac Res DSF Res Acc Total Allies 2 | . . 1 1 . . . . . . . . . Largest Group 1 | . . 1 1 . . . . . . . . . Highest-Rated Group 10 | . . 10 10 . . . . . . . . . Highest-Rated Ally 10 | . . 10 10 . . . . . . . . . Total Orders . | . . . . . . . . . . . . . Ally Attacks . | . . . . . . . . . . . . . Total Damage . | . . . . . . . . . . . . . Kills . | . . . . . . . . . . . . . Allies Corrupted . | . . . . . . . . . . . . . Allies Melted . | . . . . . . . . . . . . . Intel | -11 -10 -9 -8 -7 -6 -6 -5 -4 -3 -3 -2 -1 ------- Run | Yrd Mat Mat Mat Fac Fac DSF Fac Fac Res DSF Res Acc Active Infowar (turns) 887 | . . 24 57 142 26 26 142 118 56 49 156 91 Optics 470 | . . . . . . . . 118 56 49 156 91 Sensors 204 | . . . . . . . . . 43 49 112 . Terrain 489 | . . . . . 10 12 142 118 56 7 144 . Structural 271 | . . 24 57 142 17 . . . 11 . . 20 Jamming 389 | . . . . . . 14 125 118 56 7 69 . Robot Analysis Total . | . . . . . . . . . . . . . Derelict Logs Recovered . | . . . . . . . . . . . . . Drone Launches . | . . . . . . . . . . . . . Drone Recoveries . | . . . . . . . . . . . . . Exploration | -11 -10 -9 -8 -7 -6 -6 -5 -4 -3 -3 -2 -1 ------------- Run | Yrd Mat Mat Mat Fac Fac DSF Fac Fac Res DSF Res Acc Turns Passed 1017 | 4 59 86 57 142 26 28 142 118 56 49 156 94 Spaces Moved 2342 | 1 104 159 168 363 54 77 357 274 143 86 379 177 Core 361 | 1 104 19 . . . . . . . . 60 177 Treads . | . . . . . . . . . . . . . Legs . | . . . . . . . . . . . . . Wheels . | . . . . . . . . . . . . . Hover . | . . . . . . . . . . . . . Flight 1981 | . . 140 168 363 54 77 357 274 143 86 319 . Fastest Speed 20 | 50 50 31 25 25 25 25 25 28 28 25 20 50 Average Speed 29 | 50 50 34 27 25 25 25 27 28 28 26 26 50 Slowest Speed 100 | 50 50 50 28 25 25 25 28 28 28 28 100 50 Overloaded Moves . | . . . . . . . . . . . . . Propulsion Burnouts . | . . . . . . . . . . . . . Robots Hopped 13 | . . 4 1 2 . . 2 1 . . 3 . Potential Cave-ins . | . . . . . . . . . . . . . Cave-ins Triggered . | . . . . . . . . . . . . . Exploration Rate (%) 24 | 2 31 29 26 15 2 83 17 12 3 81 15 8 Regions Visited 12 Branch Regions . Pre-discovered Areas . | . . . . . . . . . . . . . Known Exits Taken 6 | . . 1 1 1 1 . . 1 1 . . . Unknown Exits Taken 4 | 1 1 . . . . . 1 . . . 1 . Scrap Searched . | . . . . . . . . . . . . . Spaces Dug 42 | . . . . 5 1 2 10 10 2 2 10 . Terrain Destroyed 42 | . . . . 5 1 2 10 10 2 2 10 . Melee 42 | . . . . 5 1 2 10 10 2 2 10 . Projectile . | . . . . . . . . . . . . . AOE . | . . . . . . . . . . . . . Terrain Rammed . | . . . . . . . . . . . . . Walls Destroyed . | . . . . . . . . . . . . . Machines Disabled . | . . . . . . . . . . . . . Actions | -11 -10 -9 -8 -7 -6 -6 -5 -4 -3 -3 -2 -1 --------- Run | Yrd Mat Mat Mat Fac Fac DSF Fac Fac Res DSF Res Acc Total 2516 | 5 110 183 178 391 61 81 375 290 151 105 405 181 Wait 16 | . . 12 . 3 . 1 . . . . . . Move 2305 | . 103 150 165 358 53 76 353 271 142 85 372 177 Hop 12 | . . 4 1 2 . . 1 1 . . 3 . Pick Up 32 | . 5 6 5 6 1 . 1 2 2 2 2 . Fast Attach 11 | . 1 2 . 1 1 1 2 1 . 1 . 1 Attach 27 | 2 . 5 2 5 2 . 3 2 2 . 3 1 Detach 4 | . . . . . . 1 . . . . 3 . Swap 9 | . . . 1 . 1 . 1 . 2 3 1 . Drop 20 | 3 1 2 4 4 1 . 1 . . . 4 . Fire 2 | . . 2 . . . . . . . . . . Melee 63 | . . . . 11 2 2 13 13 3 2 17 . Ram 2 | . . . . . . . . . . . . 2 Kick . | . . . . . . . . . . . . . Crush . | . . . . . . . . . . . . . Escape Stasis 12 | . . . . . . . . . . 12 . . Rewire . | . . . . . . . . . . . . . Trap . | . . . . . . . . . . . . . Miscellaneous 1 | . . . . 1 . . . . . . . . Route ------- -11/Scrapyard -10/Materials (discovered 2 exits: *Mat / [*Min]) -9/Materials -8/Materials (discovered 3 exits: *Fac x3) -7/Factory (discovered 4 exits: *Fac x4) -6/Factory -6/DSF -5/Factory (discovered 5 exits: *Fac / Upp x2 / Ext x2) -4/Factory (discovered 5 exits: *Res x4 / [*Upp]) -3/Research -3/DSF -2/Research -1/Access History --------- Turn | Location | Event 1 | -11/Scrapyard | Released all parts (6) 5 | -11/Scrapyard | Discovered new exit (range 0) 5 | -11/Scrapyard | Entered Materials 48 | -10/Materials | Discovered new exit (range 14) 60 | -10/Materials | Discovered new exit (range 10) 64 | -10/Materials | Entered another Materials area 64 | -9/Materials | Evolved 2 slots: Propulsion x2 146 | -9/Materials | Discovered new exit (range 9) 150 | -9/Materials | Identified exit to Materials 150 | -9/Materials | Entered another Materials area 150 | -8/Materials | Evolved 2 slots: Propulsion x2 192 | -8/Materials | Identified exit to Factory 207 | -8/Materials | Entered Factory 207 | -7/Factory | Evolved 2 slots: Power x1, Utility x1 317 | -7/Factory | Identified exit to Factory 349 | -7/Factory | Entered another Factory area 349 | -6/Factory | Evolved 2 slots: Utility x2 375 | -6/Factory | Identified exit to DSF 375 | -6/Factory | Entered DSF 392 | -6/DSF | Additional patrols routed to DSF 400 | -6/DSF | Discovered new exit (range 14) 403 | -6/DSF | Entered Factory 403 | -5/Factory | Evolved 2 slots: Utility x2 465 | -5/Factory | Identified exit to Upper Caves 465 | -5/Factory | Identified exit to Extension 535 | -5/Factory | Discovered new exit (range 9) 545 | -5/Factory | Entered another Factory area 545 | -4/Factory | Evolved 2 slots: Utility x2 586 | -4/Factory | Spotted B-86 Titan 599 | -4/Factory | Discovered new exit (range 5) 625 | -4/Factory | Identified exit to Research 663 | -4/Factory | Entered Research 663 | -3/Research | Evolved 2 slots: Utility x2 719 | -3/Research | Identified exit to DSF 719 | -3/Research | Entered DSF 719 | -3/DSF | Encountered a pitched battle between 0b10 and Warlord forces 740 | -3/DSF | Spotted Executioner 752 | -3/DSF | Discovered new exit (range 15) 767 | -3/DSF | Identified exit to Research 768 | -3/DSF | Entered Research 768 | -2/Research | Evolved 2 slots: Propulsion x2 794 | -2/Research | Lost 16 allies 851 | -2/Research | Build established: Ninja 880 | -2/Research | Spotted B-90 Cyclops 917 | -2/Research | Discovered new exit (range 16) 924 | -2/Research | Entered Access 924 | -1/Access | Evolved 2 slots: Utility x2 950 | -1/Access | Lost 14 parts (9n3u2w) 1018 | -1/Access | Self-destructed Last Messages --------------- 00919_ Adv. Signal Interpreter destroyed. 00922_ Penetrated by Slug. 00922_ Slug penetrates S-43 Plague. PARAMETERS=UTILITY+2 LOCATION=UNKNOWN GOAL=ESCAPE 00925_ O-24 Administrator: "IFF HANDSHAKE FAILED. SECURING TERMINAL." 00931_ Connecting with Terminal... 00931_ Current location identified: Access 00931_ ALERT: Suspicious activity at Terminal A013. Dispatching Investigation squad. 00959_ Slammed into K-01 Serf. 00959_ Destabilizing: System corrupted (+2). 00981_ Acquired System Shield. 00985_ Slammed into S-43 Plague. 00985_ Adv. Terrain Scan Processor destroyed. 00986_ Structural Scanner destroyed. 01012_ Adv. Terrain Scan Processor destroyed. 01015_ Enh. Optical Array destroyed. 01017_ System Shield destroyed. Map ----- +----------------------------------------------------+ | ?????????### ?# ## #### | | ?????????# ?# ## #### | | ?????????# ##/####### [ / | | ?????????# #????## #### | | ?????????# #????## #### | | ?????????# ####?## #### | | ?????????# #?############### ### | | ?????????# #?############### # | | ?????????# ################ # ? | | ?????????# ^ # ? | | ?????????# #"? | | ?????????# # ? | | ? # ? | | ? ################# #?? | | ? #?#######???????# #?? | | ##+####### #?# ?????# ### | | ?????????### #### #?? #????# | | ???????????# ???# #?? " #????# | | ???????????# ???# #??? """ ?????# | | ???????????# ???# #??? """?????# " | | ???????????# ???# #???? "??????# """ """ | | ???????????#????# #???? ??????# """ """ | | ????????????????#+#????? ???????# " """ | | ???????????????????????? ???????# F" | | ?????????????????????####/######### """ | | ?????????????????????# @ s s "" | | ?????????????????????# s | | ????????????####?????# s | | ????????????# ## s | | ????????????# k ## | | ????????????# ""#####+################? | | ????????????# "???? ??????????????? | | ????????????# ??? ?????????????? | | ????????????????????# #?????????????? | | ????????????????????# #???????????????#### | | ????????????????????# #??????????????????? | | ????????????????????# ] #??????????????????? | | ????????????????????#! #??????????????????? | | ????????????????????# #??????????????????? | | ????????????????????###########??????????????????? | | ?????????????????????????????????????????????????? | | ?????????????????????????????????????????????????? | | | | | | | | | | | | | | | | | +----------------------------------------------------+ Best States ------------- Heat Dissipation 76 Energy Generation 41 Energy Capacity 260 Matter Stores 300 Matter Capacity 300 Sight Range 22 Robot Scan Range 16 Terrain Scan Range 14 Terrain Scan Density 1010 Jamming Range 14 Evasion (%) 66 Offensive Hacking 20 Defensive Hacking 10 Item Schematics ----------------- None Robot Schematics ------------------ None Fabricated ------------ Nothing Repaired ---------- Nothing Alien Tech Used ----------------- None Achievements -------------- None Challenges ------------ None Game ------ Seed ArchitectTargetFragment Manual? 0 Play Time 00:39:42 Cumulative 544.1 hours Start 2025.06.19 @ 01:31:08 End 2025.06.19 @ 02:09:54 Sessions 1 Manual Loads 0 Difficulty Rogue Special Mode None Game No. 655 Rogue 655 Adventurer 0 Explorer 0 Win Type - Total 19 Types 13/0/5/1/0/0/0/0/0/0 Lore% 84 Gallery% 83 Achievement% 82 Wizard Run 0 Options --------- Layout 0 ASCII 0 Keyboard 0 Movement Numpad Keybinds 0 Fullscreen 1 Font 18/SmallcapsGlow Map View 76x50 Zoom Use 0% Tactical HUD 1 Map Filters NONE Filters NONE Steam 1 RUN: 485eff08-5ee4-407b-9b75-e283869ea9e0